[Event "Fall GM-A Norm Invitational 2022"]
[Site "Charlotte"]
[Date "2022.11.21"]
[Round "7"]
[White "Cordova, Emilio"]
[Black "Mardov, Dimitar"]
[Result "1/2-1/2"]
[ECO "A06"]
[WhiteElo "2561"]
[BlackElo "2432"]
[Annotator "TA"]
[PlyCount "58"]
[EventDate "2022.11.18"]
[EventType "tourn"]
[EventCountry "USA"]
[SourceTitle "playchess.com"]
[Source "ChessBase"]
[SourceQuality "1"]
[TimeControl "5400+30"]

{[%evp 20,58,0,-4,0,-30,-50,-48,-48,-43,-49,-31,-62,-58,-49,-47,-56,-50,-66,-60,-7,-6,-6,-6,-4,-12,-9,-20,-16,-16,-16,-14,-18,-34,-27,-54,-11,-11,-11,-24,-28]} 1. Nf3 {[%emt 0:01:52]} d5 {[%emt 0:00:05]} 2. e3 {[%emt 0:00:57]} Nf6 {[%emt 0:00:17]} 3. c4 {[%emt 0:00:15]} e6 {[%emt 0:00:48]} 4. Nc3 {[%emt 0:00:07]} b6 {[%emt 0:01:30]} 5. b3 {[%emt 0:00:27]} Bb7 {[%emt 0:00:57]} 6. Bb2 {[%emt 0:00:27]} Be7 {[%emt 0:03:41]} 7. d4 {[%emt 0:01:35]} O-O {[%emt 0:00:28]} 8. Bd3 {[%emt 0:00:24]} c5 {[%emt 0:03:02]} 9. O-O {[%emt 0:03:45]} cxd4 {[%emt 0:02:23]} 10. exd4 {[%emt 0:01:56]} Nc6 {[%emt 0:00:26]} 11. Rc1 {[%emt 0:01:48]} Nb4 {[%emt 0:01:50] E14: Queen's Indian: Classical Variation (4 e3).} 12. Bb1 {[%emt 0:02:38]} dxc4 {[%emt 0:02:20]} 13. bxc4 {[%emt 0:00:05]} Bxf3 {[%emt 0:08:03] Black is slightly better.} 14. Qxf3 {[%emt 1:02:59][%cal Od4d5] [#] Hoping for d5!} Qxd4 {[%emt 0:01:02]} 15. a3 {[%emt 0:01:36] Black must now prevent Rfd1.} Na6 $1 {[%emt 0:20:54] [#]} 16. Rcd1 $146 {[%emt 0:00:53]} ({Predecessor:} 16. Qb7 Bd6 17. Nd1 Nc5 18. Qf3 Qg4 19. Qc6 Rad8 20. Ne3 Qh5 21. h3 Be5 22. Bxe5 Qxe5 {½-½ (60) Wageih,K (2362)-Amin,A (2277) Egypt 2012}) 16... Qh4 {[%emt 0:10:42]} 17. g3 {[%emt 0:04:38]} Qxc4 {[%emt 0:06:03]} 18. Bd3 {[%emt 0:01:21]} Qc8 {[%emt 0:04:20]} 19. Ne4 {[%emt 0:00:05]} Nxe4 {[%emt 0:03:37]} (19... Nd5 $1 $15) 20. Bxe4 $11 {[%emt 0:00:06] [#] Threatens to win with Bb7. A strong pair of Bishops.} Rb8 {[%emt 0:01:04] Inhibits Bb7.} 21. Be5 $132 {[%emt 0:01:02][%mdl 2048] White puts up resistance} Nc5 {[%emt 0:01:31]} 22. Bxb8 {[%emt 0:05:47]} Qxb8 {[%emt 0:00:10]} 23. Bb1 {[%emt 0:00:08]} g6 {[%emt 0:03:05]} 24. h4 {[%emt 0:00:06]} h5 {[%emt 0:01:29]} 25. Rfe1 {[%emt 0:00:04]} Kg7 {[%emt 0:00:38]} 26. Rd4 {[%emt 0:00:07]} Bf6 {[%emt 0:01:57]} 27. Rc4 {[%emt 0:00:30]} Qe8 {[%emt 0:01:14]} 28. a4 {[%emt 0:03:26]} Qe7 {[%emt 0:07:51]} 29. Rd1 {[%emt 0:00:51]} Rd8 {[%emt 0:01:45] Weighted Error Value: White=0.07 (flawless) /Black=0.06 (flawless)} 1/2-1/2

[Event "Fall GM-A Norm Invitational 2022"]
[Site "Charlotte"]
[Date "2022.11.21"]
[Round "7"]
[White "Stremavicius, Titas"]
[Black "Kaliksteyn, Alexander"]
[Result "1/2-1/2"]
[ECO "D31"]
[WhiteElo "2527"]
[BlackElo "2389"]
[Annotator "TA"]
[PlyCount "55"]
[EventDate "2022.11.18"]
[EventType "tourn"]
[EventCountry "USA"]
[SourceTitle "playchess.com"]
[Source "ChessBase"]
[SourceQuality "1"]
[TimeControl "5400+30"]

{[%evp 16,55,0,0,0,0,0,0,0,0,0,0,0,0,0,0,0,0,0,0,0,0,0,0,0,0,0,0,0,0,0,0,0,0,0,0,0,0,0,0,0,0]} 1. c4 {[%emt 0:00:17]} e6 {[%emt 0:00:14]} 2. Nc3 {[%emt 0:00:07]} d5 {[%emt 0:00:08]} 3. d4 {[%emt 0:00:05]} c6 {[%emt 0:00:22]} 4. e4 {[%emt 0:00:07]} dxe4 {[%emt 0:00:05]} 5. Nxe4 {[%emt 0:00:06]} Bb4+ {[%emt 0:00:03]} 6. Bd2 {[%emt 0:00:09][%cal Bc1d2,Bd2b4,Bb4d6,Bd6e5][%mdl 32]} Qxd4 {[%emt 0:00:06]} 7. Bxb4 {[%emt 0:00:04]} Qxe4+ {[%emt 0:00:07]} 8. Be2 {[%emt 0:00:04]} Na6 {[%emt 0:00:17]} 9. Bd6 {[%emt 0:00:07] The position is equal.} Qxg2 {[%emt 0:01:08] D31: Queen's Gambit Declined: Semi-Slav without ...Nf6 (+ Marshall Gambit and Noteboom) and Exchange Variation lines without ...Nf6.} 10. Qd2 {[%emt 0:00:08][%mdl 64]} Nf6 {[%emt 0:01:32]} (10... Qxh1 $2 11. O-O-O Qe4 {[#]} 12. Be7 $1 $18 {[%mdl 512]}) 11. Bf3 {[%emt 0:00:32]} Qg6 {[%emt 0:00:07] White must now prevent ...Ne4.} 12. O-O-O {[%emt 0:00:15]} e5 {[%emt 0:04:32]} (12... Ne4 $2 13. Bxe4 Qf6 14. Nf3 $18) 13. Bxe5 {[%emt 0:00:08][%csl Gd1][%cal Rd2d8] This pair of bishops is nice.} Be6 {[%emt 0:00:57]} 14. Ne2 {[%emt 0:00:13][%cal Bg1e2,Be2c3,Bc3e4,Be4d6][%mdl 32] Threatens to win with Rhe1.} Qf5 {[%emt 0:01:08]} 15. Bf4 {[%emt 0:00:35]} Qc5 {[%emt 0:01:00]} 16. Nc3 {[%emt 0:01:02]} Qxc4 {[%emt 0:01:37] And now ...Nb4 would win.} 17. Be2 {[%emt 0:00:24]} Qb4 {[%emt 0:02:28]} 18. Bxa6 {[%emt 0:00:14]} bxa6 {[%emt 0:00:06]} 19. Bd6 {[%emt 0:00:07]} Qb7 {[%emt 0:03:12]} 20. Bc5 {[%emt 0:00:20] aiming for Qg5.} Nd5 {[%emt 0:01:43]} 21. Ne4 {[%emt 0:00:13] Hoping for Nd6+.} O-O-O $1 {[%emt 0:00:21]} 22. Nd6+ $1 {[%emt 0:00:08]} Rxd6 $1 {[%emt 0:00:05]} 23. Bxd6 {[%emt 0:00:07]} Rd8 {[%emt 0:00:08]} 24. Ba3 {[%emt 0:00:15]} Bg4 {[%emt 0:03:45]} 25. Rde1 {[%emt 0:00:12]} Bf5 {[%emt 0:00:45] [#]} 26. Rd1 $146 {[%emt 0:01:52]} ({Predecessor:} 26. Re5 Bg6 27. Qd4 f6 28. Re2 Qc7 29. Rd2 Re8 30. b3 Kb7 31. f3 Re3 32. Rf1 Qc8 33. Kb2 Qh3 34. Rc1 {1-0 (62) Yoo,C (2548)-Burke,J (2579) Saint Louis 2022}) 26... Bg4 {[%emt 0:04:27]} 27. Rde1 {[%emt 0:00:07]} Bf5 {[%emt 0:00:07]} 28. Rd1 {[%emt 0:00:05] A balanced but interesting game.   Weighted Error Value: White=0.00 (flawless) /Black=0.00 (flawless)} 1/2-1/2

[Event "Fall GM-A Norm Invitational 2022"]
[Site "Charlotte"]
[Date "2022.11.21"]
[Round "7"]
[White "Fus, Jakub"]
[Black "Preotu, Razvan"]
[Result "1-0"]
[ECO "A48"]
[WhiteElo "2427"]
[BlackElo "2493"]
[Annotator "TA"]
[PlyCount "167"]
[EventDate "2022.11.18"]
[EventType "tourn"]
[EventCountry "USA"]
[SourceTitle "playchess.com"]
[Source "ChessBase"]
[SourceQuality "1"]
[TimeControl "5400+30"]

{[%evp 9,167,24,23,29,17,18,13,10,4,20,33,27,27,5,12,0,0,0,43,47,53,20,39,28,54,42,67,60,51,0,0,0,0,0,0,-60,-52,-53,-43,-46,-52,-58,-46,-68,-67,-73,-70,-103,-106,-114,-112,-109,-105,-184,-209,-210,-225,-152,-118,-295,-288,-284,-238,-237,-260,-220,-232,-239,-155,-137,-53,-45,0,0,0,0,0,0,0,0,0,0,-6,-188,114,116,229,236,205,269,273,247,273,267,250,203,163,0,0,0,0,0,0,0,0,0,18,118,109,0,0,0,0,0,0,0,0,0,0,0,0,0,0,0,0,0,0,0,0,0,0,0,0,0,0,0,0,0,0,0,0,0,0,0,0,0,0,0,184,45,169,168,12845,12845,12845,12846,12846,12847,12847,12847]} 1. d4 {[%emt 0:00:04]} Nf6 {[%emt 0:00:16]} 2. Nf3 {[%emt 0:00:19]} g6 {[%emt 0:00:19]} 3. Nbd2 {[%emt 0:00:18]} d5 {[%emt 0:00:19]} 4. e3 {[%emt 0:00:29]} Bg7 {[%emt 0:00:20]} 5. b4 {[%emt 0:00:27]} a5 {[%emt 0:00:25]} 6. b5 {[%emt 0:00:41] D02: 1 d4 d5 2 Nf3 sidelines, including 2...Nf6 3 g3 and 2...Nf6 3 Bf4.} c5 {[%emt 0:00:17]} 7. bxc6 {[%emt 0:00:34]} Nxc6 {[%emt 0:00:14] 7...Nxc6 scores better than 7...bxc6.} 8. Be2 {[%emt 0:00:59] The position is equal.} O-O {[%emt 0:01:15]} 9. O-O {[%emt 0:00:30]} Bf5 {[%emt 0:02:18]} 10. c4 {[%emt 0:01:15]} Rb8 {[%emt 0:13:48] [#]} 11. Bb2 $146 {[%emt 0:09:06]} ({Predecessor:} 11. a4 dxc4 12. Bxc4 Nd5 13. Bb2 Nb6 14. Bb3 Nb4 15. e4 Bd7 16. Ne5 Be8 17. Ndf3 {½-½ (38) Salinas Herrera,P (2514)-Theodorou,N (2566) Philadelphia 2021}) 11... dxc4 {[%emt 0:01:00]} 12. Nxc4 {[%emt 0:08:15]} b5 {[%emt 0:01:42]} 13. Nce5 {[%emt 0:00:46]} Na7 {[%emt 0:00:30]} 14. a4 {[%emt 0:08:11]} b4 {[%emt 0:05:14]} 15. Bc4 {[%emt 0:01:43]} Ne4 {[%emt 0:08:10]} 16. Qe2 {[%emt 0:08:08]} Rb6 {[%emt 0:12:24]} 17. Rac1 {[%emt 0:05:19]} Be6 {[%emt 0:02:02]} 18. Bd3 {[%emt 0:16:24]} Bd5 {[%emt 0:02:17]} 19. Nc4 {[%emt 0:05:12]} (19. Bxe4 $14 Bxe4 20. Rc5) 19... Rb8 {[%emt 0:01:11]} 20. Nfe5 {[%emt 0:05:45]} Rc8 {[%emt 0:02:31]} 21. f3 {[%emt 0:05:35]} Nd6 {[%emt 0:00:44]} 22. Nxd6 {[%emt 0:02:15]} (22. Nd2 $11) 22... exd6 {[%emt 0:01:07]} 23. Nc4 {[%emt 0:01:33]} Nc6 {[%emt 0:01:34][%cal Ba7c6,Bc6e7,Be7d5,Bd5c3][%mdl 32]} 24. Qf2 {[%emt 0:00:14]} f5 {[%emt 0:11:33]} 25. Rfe1 {[%emt 0:00:07]} Kh8 {[%emt 0:00:27]} 26. Kh1 {[%emt 0:01:09]} Bg8 {[%emt 0:03:15]} 27. Bf1 {[%emt 0:01:41]} Ne7 {[%emt 0:02:19]} 28. Qg3 {[%emt 0:03:16]} Rc6 {[%emt 0:00:09]} 29. Nd2 {[%emt 0:03:38]} Rxc1 {[%emt 0:01:26]} 30. Rxc1 {[%emt 0:00:04]} Nd5 {[%emt 0:00:17]} 31. e4 {[%emt 0:01:24]} (31. Qe1 $17) 31... Bh6 $19 {[%emt 0:02:57]} 32. Qe1 {[%emt 0:01:02]} fxe4 {[%emt 0:00:05]} 33. fxe4 {[%emt 0:00:22]} Nc3 {[%emt 0:00:42]} 34. Ra1 $2 {[%emt 0:01:33]} (34. d5 $17 {was forced.}) 34... d5 {[%emt 0:03:14] Hoping for ...dxe4.} 35. Bd3 {[%emt 0:03:28]} Bxd2 {[%emt 0:07:12]} 36. Qxd2 {[%emt 0:00:03]} dxe4 {[%emt 0:00:07]} 37. Bc2 {[%emt 0:01:11]} Qf6 {[%emt 0:00:25][%cal Of6f1]} 38. h3 {[%emt 0:00:33]} Bd5 {[%emt 0:03:00]} 39. Bxc3 {[%emt 0:00:29]} bxc3 {[%emt 0:05:37]} (39... Qe7 $17 40. Re1 (40. Bb2 $2 e3 $19) 40... bxc3) 40. Qxc3 $15 {[%emt 0:00:05]} Qf2 {[%emt 0:00:09] ( -> ...e3)} (40... Re8 $5 {[%cal Re4e3]} 41. Qxa5 Ba8 $11) 41. Qxa5 {[%emt 0:02:39]} (41. Qc5 Rf5 42. Qc8+ Kg7 43. Qc7+ Kh6 $19) 41... Qf5 {[%emt 0:03:35] Strongly threatening ...Qe6.} (41... Rf5 $5 42. Qd8+ $8 Kg7 43. Bxe4 Qxd4 $11) 42. Qe1 {[%emt 0:01:12]} Qg5 {[%emt 0:00:17] Prevents Qg3.} 43. Kh2 $1 {[%emt 0:02:52]} (43. Bxe4 $2 Re8 44. Qf2 (44. h4 $2 Qd8 $19) 44... Rxe4 45. Qf8+ Bg8 $19) 43... e3 {[%emt 0:00:37][%csl Gd5][%cal Rg5g2]} 44. Qg3 {[%emt 0:00:03]} Qe7 {[%emt 0:00:58]} 45. Bd3 {[%emt 0:01:17]} Rf2 {[%emt 0:00:06]} 46. Bf1 {[%emt 0:00:28]} (46. Rg1 $1 $11 {and White is okay.}) 46... Kg7 $2 {[%emt 0:02:17]} (46... Rb2 $19 {...e2 is the strong threat.} 47. Re1 (47. Qe5+ $2 Qxe5+ 48. dxe5 e2 $19) 47... e2 48. Bxe2 Rxe2 49. Rxe2 Qxe2) 47. Re1 $16 {[%emt 0:00:18] And now Qxf2 would win.} Qf6 {[%emt 0:00:01] [#]} (47... Rf5 $16 {is a better defense.} 48. Rxe3 Qd8) 48. Qxe3 $1 $18 {[%emt 0:00:42]} Rxf1 {[%emt 0:01:09]} (48... Qf4+ 49. Qxf4) 49. Rxf1 {[%emt 0:00:02]} Qxf1 {[%emt 0:00:08][%csl Gd5][%cal Rf1g2]} 50. Qe5+ {[%emt 0:00:02]} Qf6 {[%emt 0:00:19]} 51. Qxd5 {[%emt 0:00:03][%mdl 4096] Endgame KQ-KQ} Qf4+ {[%emt 0:00:11]} 52. Kg1 {[%emt 0:01:36]} Qe3+ {[%emt 0:01:11]} 53. Kh1 $2 {[%emt 0:00:17]} (53. Kf1 $1 $18 {Threatens to win with Qe5+.} Qc1+ 54. Kf2) 53... Qc1+ $11 {[%emt 0:00:05]} 54. Kh2 {[%emt 0:00:03]} Qf4+ {[%emt 0:00:04]} 55. g3 {[%emt 0:00:07]} Qf2+ {[%emt 0:00:07]} 56. Qg2 {[%emt 0:00:03]} Qxd4 {[%emt 0:00:04]} 57. Qa2 {[%emt 0:00:04]} Qb6 {[%emt 0:00:19]} 58. a5 {[%emt 0:00:04]} Qa6 {[%emt 0:00:04] [#]} 59. h4 {[%emt 0:00:06]} (59. Qb2+ $1 $16 Kf7 60. Qe5) 59... h5 {[%emt 0:00:22]} 60. Qb2+ {[%emt 0:01:09]} Kh7 {[%emt 0:00:12]} 61. Qd2 {[%emt 0:00:42]} Qb5 {[%emt 0:00:48]} 62. Kg2 {[%emt 0:02:03]} Qc6+ {[%emt 0:00:08]} 63. Kf2 {[%emt 0:00:24]} Qc5+ {[%emt 0:00:12]} 64. Kf3 {[%emt 0:00:41]} Qc6+ {[%emt 0:00:11]} 65. Ke3 {[%emt 0:00:33]} Qc5+ {[%emt 0:01:30]} 66. Ke4 {[%emt 0:00:45]} Qe7+ {[%emt 0:02:15]} 67. Kf3 {[%emt 0:00:29]} Qb7+ {[%emt 0:00:11]} 68. Kf2 {[%emt 0:00:05]} Qb5 {[%emt 0:00:29]} 69. Qc3 {[%emt 0:00:08]} Qf5+ {[%emt 0:00:55]} 70. Ke2 {[%emt 0:00:09]} Qe4+ {[%emt 0:00:17]} 71. Kd2 {[%emt 0:00:08]} Qd5+ {[%emt 0:01:06]} 72. Kc1 {[%emt 0:00:05]} Qb5 {[%emt 0:00:08]} 73. Qc7+ {[%emt 0:00:08]} Kh6 {[%emt 0:00:19]} 74. Kc2 {[%emt 0:00:25]} Qa4+ {[%emt 0:00:24]} 75. Kd3 {[%emt 0:00:14]} Qd1+ {[%emt 0:02:12]} 76. Ke4 {[%emt 0:00:05]} Qe2+ {[%emt 0:00:26]} 77. Kd5 {[%emt 0:00:08]} Qf3+ {[%emt 0:00:10]} 78. Ke6 {[%emt 0:00:20] aiming for Qf4+.} Qb3+ $2 {[%emt 0:00:21]} (78... Qf5+ $11 79. Kd6 Qd3+ 80. Ke6 Qf5+ 81. Ke7 Qe4+ 82. Kd6 Qd3+ 83. Ke6 Qf5+) 79. Ke7 {[%emt 0:00:11]} ({White must play} 79. Kf6 $18 {[%csl Gf6][%cal Rc7g7]} Qg8 80. Qf4+ Kh7 81. Ke7 Qh8 82. Qf7+ Kh6 83. Qf8+ Qg7+ 84. Qxg7+ Kxg7 85. a6) 79... Qb4+ {[%emt 0:01:18]} (79... Qb5 $1 $14 80. Kf8 Qb4+ 81. Kg8 Qb3+ 82. Qf7 Qe6 83. a6 Qc8+ 84. Qf8+ Qxf8+ 85. Kxf8 g5) 80. Kf7 $18 {[%emt 0:00:29]} Qb3+ $2 {[%emt 0:00:29]} (80... Qb5 81. Kf8 Qf5+ 82. Kg8 Qd5+ 83. Qf7 (83. Kf8 Qa8+ 84. Kf7 Qd5+ 85. Kf8 Qa8+ 86. Kf7 Qd5+ 87. Kf8 $16) 83... Qe6 84. a6 Qc8+ 85. Qf8+ Qxf8+ 86. Kxf8 g5) 81. Kf8 {[%emt 0:00:30][%csl Gf8][%cal Rc7g7] White is clearly winning.} Qb4+ {[%emt 0:00:23] [#]} 82. Kg8 $1 {[%emt 0:01:37][%csl Gg8][%cal Rc7g7]} Qb3+ {[%emt 0:00:43]} 83. Qf7 {[%emt 0:00:06]} Qe6 {[%emt 0:00:16]} 84. a6 $1 {[%emt 0:00:05] A wild game.  Weighted Error Value: White=0.20 (precise) /Black=0.19 (very precise)} 1-0

[Event "Fall GM-A Norm Invitational 2022"]
[Site "Charlotte"]
[Date "2022.11.21"]
[Round "7"]
[White "Siddharth, Jagadeesh"]
[Black "Tiglon, Bryce"]
[Result "1/2-1/2"]
[ECO "D85"]
[WhiteElo "2407"]
[BlackElo "2475"]
[Annotator "TA"]
[PlyCount "40"]
[EventDate "2022.11.18"]
[EventType "tourn"]
[EventCountry "USA"]
[SourceTitle "playchess.com"]
[Source "ChessBase"]
[SourceQuality "1"]
[TimeControl "5400+30"]

{[%evp 23,24,10,12]} 1. d4 {[%emt 0:05:13]} Nf6 {[%emt 0:00:02]} 2. c4 {[%emt 0:00:21]} g6 {[%emt 0:00:03]} 3. Nc3 {[%emt 0:00:38]} d5 {[%emt 0:00:04]} 4. cxd5 {[%emt 0:00:10]} Nxd5 {[%emt 0:00:03]} 5. g3 {[%emt 0:00:12]} Bg7 {[%emt 0:00:08]} 6. Bg2 {[%emt 0:00:09]} Nxc3 {[%emt 0:00:05]} 7. bxc3 {[%emt 0:00:12]} c5 {[%emt 0:00:03]} 8. Nf3 {[%emt 0:00:15]} Nc6 {[%emt 0:05:56]} 9. O-O {[%emt 0:00:14]} cxd4 {[%emt 0:00:12]} 10. Nxd4 {[%emt 0:00:11]} Nxd4 {[%emt 0:01:16]} 11. cxd4 {[%emt 0:00:10]} Qxd4 {[%emt 0:00:10]} 12. Rb1 {[%emt 0:00:07]} O-O {[%emt 0:06:58] [#]} {Predecessor:} 13. Be3 $146 {D75: Fianchetto Grünfeld: Main Line with 7...c5.} Qc4 14. Bd5 Qa6 15. Qb3 Qxe2 16. Bc5 Be6 17. Bxe6 Qxe6 18. Qxe6 fxe6 19. Rxb7 Bf6 20. Bxa7 Rfc8 {1-0 (86) Mamedyarov,S (2758)-Vachier Lagrave,M (2757) Saint Louis 2022} 1/2-1/2